Cogmind - Beta 17.1 @@@ ROGUE MODE // 2026.09.16 @ 21:20:15 Player: 4R-ZE3 Result: Destroyed by W6-YMF(R) with Subdweller Machine Gun Performance ------------- Evolutions (0) 0 Regions Visited (2) 400 Robots Destroyed (14) 70 Value Destroyed (356) 356 Prototype IDs (0) 0 Alien Tech Used (0) 0 Bonus (0) 0 TOTAL SCORE: 826 Bonus ------- None Cogmind --------- Core Integrity 0/250 Matter 292/300 Energy 250/250 System Corruption 0% Temperature Cool (0) Movement Rolling (120) Ox1 Location -10/Subcaves Parts ------- > --- POWER (1) -------- Ion Engine > --- PROPULSION (2) --- Subdweller Monowheel > --- UTILITY (2) ------ Large Storage Unit > --- WEAPON (2) ------- Subdweller Machine Gun > --- INVENTORY (15) --- Light Ion Engine Wheel Compact Wheel Compact Wheel Subdweller Monowheel Heat Sink Disposable Heat Sink Light Assault Rifle Battle Rifle Mining Laser Peak State ------------ > --- POWER ------------ Ion Engine > --- PROPULSION ------- Light Treads Subdweller Monowheel > --- UTILITY ---------- Large Storage Unit > --- WEAPON ----------- Medium Laser Subdweller Machine Gun > --- INVENTORY -------- Light Ion Engine Wheel Compact Wheel Compact Wheel Subdweller Monowheel Heat Sink Disposable Heat Sink Light Assault Rifle Battle Rifle Mining Laser [Rating: 9] Favorites ----------- Power Light Ion Engine Engine Light Ion Engine Propulsion Aluminum Leg Treads Light Treads Leg Aluminum Leg Wheel Subdweller Monowheel Utility Large Storage Unit Device Heat Sink Storage Large Storage Unit Weapon Medium Laser Energy Gun Medium Laser Ballistic Gun Light Assault Rifle Special Weapon Mining Laser Build | -11 -10 -10 ------- Run | Yrd Mat Sub Slots Evolved . | . . . Power . | . . . Propulsion . | . . . Utility . | . . . Weapon . | . . . Parts Attached 11 | . 5 6 Power 1 | . . 1 Engine 1 | . . 1 Core . | . . . Reactor . | . . . Propulsion 3 | . 2 1 Treads 2 | . 2 . Leg . | . . . Wheel 1 | . . 1 Hover . | . . . Flight . | . . . Utility 2 | . 2 . Device 1 | . 1 . Storage 1 | . 1 . Processor . | . . . Hackware . | . . . Protection . | . . . Artifact . | . . . Weapon 5 | . 1 4 Energy Gun 2 | . 1 1 Energy Cannon . | . . . Ballistic Gun 2 | . . 2 Ballistic Cannon . | . . . Launcher . | . . . Special Weapon 1 | . . 1 Impact Weapon . | . . . Slashing Weapon . | . . . Piercing Weapon . | . . . Special Melee Weapon . | . . . Unidentified Prototypes . | . . . Parts Lost 7 | . 1 6 Power 1 | . . 1 Propulsion 3 | . 1 2 Utility 1 | . . 1 Weapon 2 | . . 2 Highest Loss Streak 4 | . 1 4 To Critical Strikes . | . . . Average Backups 7 | . 7 8 Power 1 | . 1 1 Propulsion 3 | . 3 3 Utility . | . . 1 Weapon 1 | . 1 2 Tool/Special . | . . . Unused Backups 14 | . 5 9 Power 3 | . 1 2 Propulsion 6 | . 2 4 Utility 3 | . 1 2 Weapon 2 | . 1 1 Tool/Special . | . . . Average Slot Usage (%) 90 | . 93 79 Engine 13 | . 14 10 Treads 9 | . 7 19 Leg 15 | . 20 . Wheel 1 | . . 5 Device 5 | . 6 2 Storage 15 | . 15 14 Energy Gun 19 | . 20 17 Ballistic Gun 7 | . 7 8 Peak Build Rating 9 | . 7 9 Average Rating 6 | . 6 6 On Entrance 6 | 6 6 7 Avg Prop Armor Cover (%) 14 | . . 14 Naked Turns . | . . . Heaviest Build 31 | 11 31 28 Greatest Support 40 | 20 40 40 Greatest Overweight (x) 1 | . 1 1 Average Overweight (x) . | . . . Largest Inventory Capacity 15 | . 15 15 Average Capacity 14 | . 13 15 Most Carried 10 | . 8 10 Average Carried 7 | . 7 8 Final Capacity 15 | 8 15 15 Final Carried 10 | 6 8 10 Class Distribution -------------------- 100% | Mutant Dominant Class ---------------- Mutant | -10/Materials Mutant | -10/Subcaves Resources | -11 -10 -10 ----------- Run | Yrd Mat Sub Matter Collected 319 | 200 59 60 Remotely . | . . . Salvage Created 463 | . 266 197 Parts 15 | . 10 5 Haulers Intercepted . | . . . Recyclers Shooed . | . . . Parts Field Recycled . | . . . Retrieved Matter . | . . . Parts Self-Destructed . | . . . Prevented . | . . . Parts Restored . | . . . Kills | -11 -10 -10 ------- Run | Yrd Mat Sub Combat Hostiles Destroyed 14 | . 10 4 Guns 14 | . 10 4 Classes Destroyed 3 | . 2 1 Swarmer 6 | . 6 . Grunt 4 | . 4 . Subdweller 4 | . . 4 Best Kill Streak 6 | . 6 1 Combat Bots Only 6 | . 6 1 Max Kills in Single Turn 1 | . 1 1 Gunslinging . | . . . Exploded . | . . . Melee . | . . . Uniques/NPCs Destroyed . | . . . Combat | -11 -10 -10 -------- Run | Yrd Mat Sub Hostile Shots Fired 90 | . 38 52 Missed 20 | . 7 13 Hits 70 | . 31 39 Projectile 70 | . 31 39 Critical Strikes 2 | . 1 1 Damage Taken 1138 | . 301 837 Core 269 | . 52 217 Absorbed by Shields . | . . . Core Remaining (%) 100 | 100 . . Volleys Fired 45 | . 25 20 Largest 2 | . 2 2 Hottest 100 | . 100 100 Shots Fired 86 | . 50 36 Gun 84 | . 50 34 Cannon . | . . . Launcher . | . . . Special 2 | . . 2 Kinetic 20 | . 9 11 Thermal 66 | . 41 25 Explosive . | . . . Electromagnetic . | . . . Robot Hit Streak 18 | . 10 18 Robot Miss Streak 2 | . 2 1 Penetration Max . | . . . Secondary Targets 1 | . . 1 Max Gunslinging Chain 1 | . . 1 Shots Hit Robots 65 | . 31 34 Core Hits 25 | . 14 11 Critical Kills . | . . . Critical Parts Destroyed . | . . . Critical Strikes 4 | . 2 2 Burn 4 | . 2 2 Melee Attacks . | . . . Impact . | . . . Slashing . | . . . Piercing . | . . . Sneak Attacks . | . . . Combat Hostiles . | . . . Follow-up Attacks . | . . . Damage Inflicted 696 | . 363 333 Guns 696 | . 363 333 Cannons . | . . . Explosions . | . . . Melee . | . . . Ramming . | . . . Kinetic 116 | . 31 85 Thermal 580 | . 332 248 Explosive . | . . . Electromagnetic . | . . . Impact . | . . . Slashing . | . . . Piercing . | . . . Highest Corruption . | . . . Average Corruption . | . . . Corruption Purged . | . . . Corruption Blocked . | . . . Overload Shots . | . . . Overflow Damage . | . . . Projectiles . | . . . Explosions . | . . . Melee . | . . . Knockbacks . | . . . Impact . | . . . Kinetic . | . . . Secondary . | . . . Self-Inflicted Damage . | . . . Shots . | . . . Rammed . | . . . Targets Rammed . | . . . Kicked . | . . . Crushed . | . . . Highest Temperature 216 | . 216 11 Average Temperature 76 | . 84 4 Received Heat Transfer 258 | . 96 162 Siege Activations . | . . . Martial Activations . | . . . Shielding Activations . | . . . Robots Disrupted . | . . . Combat Hostiles . | . . . Robots Corrupted . | . . . Combat Hostiles . | . . . Parts Fried . | . . . Impact Corruptions . | . . . Robots Melted . | . . . Combat Hostiles . | . . . Parts Melted 3 | . 2 1 Heat Transferred 2035 | . 1147 888 Parts Sabotaged . | . . . Parts Stolen . | . . . Parts Stripped . | . . . Power Chain Reactions . | . . . Alert | -11 -10 -10 ------- Run | Yrd Mat Sub Maximum Alert Level . | . . . Low Security (%) 100 | . 100 . Level 1 . | . . . Level 2 . | . . . Level 3 . | . . . Level 4 . | . . . Level 5 . | . . . High Security . | . . . Max Security . | . . . Peak Influence 171 | . 171 . Initial . | . . . Average 68 | . 68 . Influence Increases 306 | . 306 . Destroy 0b10 Robot/C 200 | . 200 . Destroy Leader 40 | . 40 . Successful Hack 5 | . 5 . Select Force Hacks 60 | . 60 . Destroy Structure 1 | . 1 . Influence Decreases 306 | . 178 128 Entered New Map 62 | . . 62 Time Decay 194 | . 168 26 Lost Part 50 | . 10 40 Squads Dispatched 2 | . 2 . Investigation 2 | . 2 . Extermination . | . . . Reinforcement . | . . . Assault . | . . . Garrison . | . . . Intercept . | . . . Searches Triggered . | . . . Construction Impeded . | . . . Haulers Reinforced . | . . . Active Scanning Responses . | . . . Cargo Convoy Interrupts . | . . . Stealth | -11 -10 -10 --------- Run | Yrd Mat Sub Distress Signals 1 | . 1 . Communications Jammed . | . . . Distress Signals . | . . . Times Spotted 17 | . 11 6 Peak Tracking Total 4 | . 4 4 Tactical Retreats . | . . . Traps | -11 -10 -10 ------- Run | Yrd Mat Sub Traps Triggered . | . . . Indirectly . | . . . Trap Hack Attempts . | . . . Triggered . | . . . Disarmed . | . . . Reprogrammed . | . . . Reused . | . . . Traps Extracted . | . . . Installed . | . . . Triggered . | . . . Machines | -11 -10 -10 ---------- Run | Yrd Mat Sub Machines Disabled . | . . . Max in Single Turn . | . . . Machines Repaired . | . . . Machines Dismantled . | . . . Machines Sabotaged . | . . . Overloaded Fab Kills . | . . . Hacking | -11 -10 -10 --------- Run | Yrd Mat Sub Machines Accessed 3 | . 3 . Terminals 1 | . 1 . Fabricators . | . . . Repair Stations . | . . . Recycling Units 2 | . 2 . Scanalyzers . | . . . Garrison Access . | . . . Total Hacks 5 | . 5 . Successful 3 | . 3 . Failed 2 | . 2 . Catastrophic . | . . . Database Lockouts . | . . . Manual 5 | . 5 . Terminals 3 | . 3 . Fabricators . | . . . Repair Stations . | . . . Recycling Units 2 | . 2 . Scanalyzers . | . . . Garrison Access . | . . . Terminal Hacks . | . . . Fabricator Hacks . | . . . Repair Station Hacks . | . . . Recycling Unit Hacks . | . . . Scanalyzer . | . . . Garrison Access Hacks . | . . . Unauthorized Hacks 3 | . 3 . Terminals 1 | . 1 . Botnet 1 | . 1 . Fabricators . | . . . Repair Stations . | . . . Recycling Units 2 | . 2 . Tunnel 2 | . 2 . Scanalyzers . | . . . Garrison Access . | . . . Data Cores Recovered . | . . . Used . | . . . Hacking Detections 1 | . 1 . Full Trace Events . | . . . Feedback Events . | . . . Feedback Blocked . | . . . Robot Schematics Acquired . | . . . Robots Built . | . . . Authchips . | . . . Time . | . . . Total Robot Build Rating . | . . . Part Schematics Acquired . | . . . Parts Built . | . . . Authchips . | . . . Time . | . . . Total Part Build Rating . | . . . Part Studies Acquired . | . . . Parts Repaired . | . . . Time . | . . . Parts Recycled . | . . . Recycled Matter . | . . . Retrieved Matter . | . . . Retrieved Components . | . . . Parts Scanalyzed . | . . . Part Schematics Acquired . | . . . Parts Damaged . | . . . Bothacking | -11 -10 -10 ------------ Run | Yrd Mat Sub Used RIF Installer . | . . . Robots Hacked . | . . . Non-combat . | . . . Combat . | . . . Robot Hacks Applied . | . . . Relay Couplers Released . | . . . Fabnet Peak Effective % . | . . . Robots Rewired . | . . . Allies Hacked . | . . . Hacks Repelled . | . . . Allies | -11 -10 -10 -------- Run | Yrd Mat Sub Total Allies . | . . . Largest Group . | . . . Highest-Rated Group . | . . . Highest-Rated Ally . | . . . Total Orders . | . . . Ally Attacks . | . . . Total Damage . | . . . Kills . | . . . Allies Corrupted . | . . . Allies Melted . | . . . Intel | -11 -10 -10 ------- Run | Yrd Mat Sub Active Infowar (turns) . | . . . Robot Analysis Total . | . . . Derelict Logs Recovered . | . . . Drone Launches . | . . . Drone Recoveries . | . . . Exploration | -11 -10 -10 ------------- Run | Yrd Mat Sub Turns Passed 536 | . 411 125 Spaces Moved 238 | 1 200 37 Core . | . . . Treads 69 | . 62 7 Legs 139 | 1 138 . Wheels 30 | . . 30 Hover . | . . . Flight . | . . . Fastest Speed 120 | 120 120 120 Average Speed 156 | 120 160 136 Slowest Speed 240 | 120 190 240 Overloaded Moves . | . . . Propulsion Burnouts . | . . . Robots Hopped . | . . . Potential Cave-ins . | . . . Cave-ins Triggered . | . . . Exploration Rate (%) 9 | 2 21 4 Regions Visited 2 Branch Regions 1 Pre-discovered Areas 2 | . 2 . Known Exits Taken . | . . . Unknown Exits Taken 2 | 1 1 . Scrap Searched . | . . . Spaces Dug . | . . . Terrain Destroyed . | . . . Melee . | . . . Projectile . | . . . AOE . | . . . Terrain Rammed . | . . . Walls Destroyed . | . . . Machines Disabled . | . . . Actions | -11 -10 -10 --------- Run | Yrd Mat Sub Total 312 | . 241 71 Wait 8 | . 6 2 Move 236 | . 199 37 Hop . | . . . Pick Up 8 | . 4 4 Fast Attach 3 | . 2 1 Attach 4 | . 1 3 Detach . | . . . Swap 6 | . 2 4 Drop 2 | . 2 . Fire 45 | . 25 20 Melee . | . . . Ram . | . . . Kick . | . . . Crush . | . . . Escape Stasis . | . . . Rewire . | . . . Trap . | . . . Miscellaneous . | . . . Route ------- -11/Scrapyard -10/Materials -10/Subcaves History --------- Turn | Location | Event 1 | -11/Scrapyard | Discovered new exit (range 0) 1 | -11/Scrapyard | Entered Materials 333 | -10/Materials | Build established: Mutant 402 | -10/Materials | Discovered new exit (range 7) 412 | -10/Materials | Entered Subcaves 413 | -10/Subcaves | Approached by a straggling Scientist 415 | -10/Subcaves | Ambushed by Subdwellers from Twisted Machinery 417 | -10/Subcaves | Ambushed by Subdwellers from Twisted Machinery 453 | -10/Subcaves | Core integrity fell below 50% 465 | -10/Subcaves | Core integrity fell below 20% 499 | -10/Subcaves | Lost 4 parts (1p1n1u1w) 525 | -10/Subcaves | Ambushed by Subdwellers from Twisted Machinery 537 | -10/Subcaves | Destroyed by W6-YMF(R) with Subdweller Machine Gun Last Messages --------------- 00473_ PB-IYP(R) destroyed. 00475_ Subatomizers dissect the Machine Analyzer. 00475_ Acquired 2 matter. 00480_ Acquired Battle Rifle. 00486_ Acquired Sub. Monowheel. 00487_ Acquired 10 matter. 00489_ Subatomizers dissect the Machine Analyzer. 00490_ Acquired Sub. Monowheel. 00498_ Acquired Sub. Machine Gun. 00500_ Subatomizers dissect the Wheel. 00500_ Acquired Disposable Heat Sink. 00512_ Subatomizers dissect the Wheel. 00525_ WE-LZF(R) emerges from the Twisted Machinery. 00526_ Subatomizers dissect the Wheel. 00527_ Lgt. Treads destroyed. 00528_ WE-LZF(R) destroyed. 00533_ Med. Laser destroyed. Map ----- +----------------------------------------------------+ | ??????????????????????????????####???? #????????? | | ?????????????????????????????##""##?? #????????? | | ?????????????????????????????#" ""## #?????????? | | ???????????????????????????### """""#?????????? | | ??????????????????????????##%! " """""#?????????? | | ?????????????????????????##" %!% #?????????? | | ????????????????????????##" "!" " #?????????? | | ???????????????????????##" " " " #?????????? | | ???????????????????????#" " " #?????????? | | ???????????????????????# ## ##?????????? | | ???????????????????????# ##?#"" #??????????? | | ???????????????????????# ##???##" #??????????? | | ??????????????????????## ##?????? #?????????? | | ??????????????????????# " ##???????? #????????? | | ??????????????????????## #??????????? ???????? | | ??????????????????????# "! #???????????? ??????? | | ??????????????????????# "%##????????????## ??????? | | ??????????????????????# = ##????????????????????? | | ?????????????????"????# ##???????????????????? | | ?????????????????""???# ##??????????????????? | | ?????????????????"""??## ##?????????????????? | | ?????????????????""" ??# #?????????????????? | | ???????????????????# ## #?????????????????? | | ???????????????????# #?????????????????? | | ????????????????"""# #?????????????????? | | ??????????????????#" & @ ##?????????????????? | | ??????????????? """ !%& #####??????????????????? | | ????????????????""" "R* #??????????????????????? | | ????????????????"" """ #??????????????????????? | | ??????????????? ##??????????????????????? | | ??????????????? ##????????????????????????? | | ????????????? ##??????????????????????????? | | ??????????????## ????????????????????????????? | | ???????????????# ?????????????????????????????? | | ???????????????# ?????????????????????????????? | | ??????????????? ??????????????????????????????? | | ?????????????? ???????????????????????????????? | | ???????????????? ????????????????????????????????? | | ?????????????????????????????????????????????????? | | ?????????????????????????????????????????????????? | | ?????????????????????????????????????????????????? | | ?????????????????????????????????????????????????? | | ?????????????????????????????????????????????????? | | ?????????????????????????????????????????????????? | | ?????????????????????????????????????????????????? | | ?????????????????????????????????????????????????? | | ?????????????????????????????????????????????????? | | ?????????????????????????????????????????????????? | | ?????????????????????????????????????????????????? | | ?????????????????????????????????????????????????? | +----------------------------------------------------+ Best States ------------- Heat Dissipation 35 Energy Generation 10 Energy Capacity 250 Matter Stores 300 Matter Capacity 300 Sight Range 16 Terrain Scan Density 10 Evasion (%) 55 Recoil Reduction 2 Item Schematics ----------------- None Robot Schematics ------------------ None Fabricated ------------ Nothing Repaired ---------- Nothing Studied --------- None Alien Tech Used ----------------- None Achievements -------------- None Challenges ------------ None Game ------ Seed ControlPoweredMonowheel Manual? 0 Play Time 00:03:56 Cumulative 419.7 hours Start 2026.09.16 @ 21:17:29 End 2026.09.16 @ 21:20:15 Sessions 1 Manual Loads 0 Difficulty Rogue Special Mode None Game No. 372 Rogue 318 Adventurer 54 Explorer 0 Win Type - Total 25 Types 15/2/1/1/1/1/1/1/1/1 Lore% 83 Gallery% 72 Achievement% 72 Wizard Run 0 Options --------- Layout 1 ASCII 0 Keyboard 0 Movement Mouse Keybinds 1 Fullscreen 2 Font 32/Tamsyn Map View 50x35 Zoom Use 0% Tactical HUD 1 Map Filters NONE Filters NONE Steam 1 RUN: 95193af6-8d0d-4f03-be32-25066ecf977c